bitfinex/quotes_SOLUSD_20230111
["timestamp","ask_amount","ask_price","bid_price","bid_amount"]
[1673425281907,46.81,16.027,16.011,20.0]
[1673425282119,46.81,16.027,16.012,63.86]
[1673425282451,46.81,16.027,16.012,83.86]
[1673425282664,46.81,16.027,16.013,20.0]
[1673425282874,26.68,16.03,16.014,17.0]
[1673425283071,26.68,16.03,16.016,20.0]
[1673425283072,20.0,16.029,16.016,20.0]
[1673425283276,20.0,16.029,16.017,63.84]
[1673425283504,163.6777,16.036,16.019,20.0]
[1673425283692,116.8877,16.036,16.02,196.4235]
[1673425284126,116.8877,16.036,16.021,20.0]
[1673425284328,46.78,16.039,16.022,17.0]
[1673425284543,26.62,16.04,16.024,20.0]
[1673425284752,26.62,16.04,16.025,63.82]
[1673425285496,26.62,16.04,16.026,20.0]
[1673425285820,37.0,16.039,16.026,20.0]
[1673425286860,46.77,16.042,16.027,29.95746505]
[1673425287066,46.75,16.049,16.028,20.0]
[1673425287280,46.75,16.049,16.029,174.452]
[1673425287491,46.75,16.049,16.031,20.0]
[1673425287706,46.75,16.049,16.032,46.8]
[1673425287914,46.75,16.049,16.031,79.75746505]
[1673425288127,46.75,16.049,16.031,66.8]
[1673425288319,46.75,16.049,16.031,20.0]
[1673425288739,46.75,16.049,16.032,17.0]
[1673425288950,17.0,16.045,16.032,17.0]
[1673425290220,46.75,16.049,16.032,29.95746505]
[1673425290428,46.75,16.049,16.033,20.0]
[1673425290847,46.75,16.049,16.034,17.0]
[1673425291896,17.0,16.048,16.034,17.0]
[1673425292110,46.75,16.047,16.034,17.0]
[1673425294728,46.75,16.047,16.031,66.8]
[1673425295806,66.75,16.049,16.031,79.75746505]
[1673425296422,17.0,16.048,16.032,17.0]
[1673425296723,46.75,16.047,16.032,17.0]
[1673425298008,46.75,16.047,16.031,79.75746505]
[1673425299478,46.75,16.047,16.032,17.0]
[1673425299683,17.0,16.048,16.033,20.0]
[1673425299898,46.75,16.049,16.034,17.0]
[1673425301990,46.75,16.049,16.035,20.0]
[1673425302202,46.75,16.049,16.036,17.0]
[1673425304204,26.4,16.05,16.036,17.0]
[1673425304416,20.0,16.049,16.036,17.0]
[1673425305149,66.75,16.049,16.036,17.0]
[1673425305344,66.75,16.049,16.032,46.8]
[1673425305345,37.0,16.048,16.032,46.8]
[1673425305554,46.75,16.047,16.031,20.0]
[1673425305984,17.0,16.046,16.031,20.0]
[1673425306948,17.0,16.046,16.032,17.0]
[1673425308198,17.0,16.047,16.032,17.0]
[1673425308507,46.76,16.046,16.032,17.0]
[1673425309584,17.0,16.047,16.033,20.0]
[1673425309779,17.0,16.047,16.034,17.0]
[1673425315463,46.75,16.048,16.034,17.0]
[1673425315672,66.75,16.049,16.034,17.0]
[1673425316937,17.0,16.048,16.034,17.0]
[1673425322498,17.0,16.048,16.033,32.95746505]
[1673425322703,17.0,16.048,16.031,66.8]
[1673425322910,20.0,16.047,16.031,66.8]
[1673425323120,17.0,16.046,16.031,66.8]
[1673425323331,17.0,16.046,16.031,125.23719177]
[1673425323545,20.0,16.048,16.031,125.23719177]
[1673425323762,46.75,16.047,16.031,138.19465682]
[1673425323972,46.75,16.048,16.032,17.0]
[1673425325856,46.75,16.048,16.033,20.0]
[1673425326067,46.75,16.048,16.034,17.0]
[1673425326284,66.75,16.049,16.034,17.0]
[1673425326478,17.0,16.048,16.034,17.0]
[1673425326693,66.75,16.049,16.034,17.0]
[1673425326911,66.75,16.049,16.034,29.95746505]
[1673425327125,20.0,16.049,16.035,20.0]
[1673425327328,20.0,16.049,16.037,20.0]
[1673425327740,20.0,16.049,16.038,17.0]
[1673425328157,20.0,16.049,16.038,136.8982]
[1673425328365,20.0,16.05,16.038,136.8982]
[1673425328597,20.0,16.052,16.038,136.8982]
[1673425328786,20.0,16.052,16.039,20.0]
[1673425329001,20.0,16.052,16.038,119.8982]
[1673425329216,46.74,16.051,16.038,119.8982]
[1673425329426,20.0,16.052,16.039,20.0]
[1673425329427,20.0,16.05,16.039,20.0]
[1673425329630,20.0,16.052,16.039,20.0]
[1673425330367,20.0,16.052,16.04,17.0]
[1673425335203,46.72,16.058,16.041,46.77]
[1673425335415,46.72,16.059,16.042,17.0]
[1673425335745,5.7413954,16.06,16.044,20.0]
[1673425335958,5.7413954,16.06,16.046,20.0]
[1673425336265,5.7413954,16.06,16.048,20.0]
[1673425336691,20.0,16.059,16.048,20.0]
[1673425338885,20.0,16.059,16.049,17.0]
[1673425339202,20.0,16.059,16.048,20.0]
[1673425339834,17.0,16.058,16.047,165.8845]
[1673425340155,17.0,16.058,16.047,119.1345]
[1673425340562,17.0,16.058,16.044,20.0]
[1673425340981,63.72,16.058,16.044,20.0]
[1673425341940,63.72,16.058,16.045,17.0]
[1673425345636,17.0,16.058,16.045,17.0]
[1673425348471,66.72,16.059,16.046,32.95746505]
[1673425348684,20.0,16.059,16.048,20.0]
[1673425350253,20.0,16.059,16.047,116.3645]
[1673425351602,17.0,16.058,16.047,116.3645]
[1673425353096,63.72,16.058,16.042,116.2857]
[1673425353618,66.3322086,16.058,16.042,116.2857]
[1673425353828,20.0,16.057,16.039,46.78]
[1673425354042,17.0,16.056,16.04,40.0]
[1673425354355,17.0,16.056,16.041,46.77]
[1673425355491,19.6122086,16.056,16.041,46.77]
[1673425357730,2.6122086,16.056,16.042,20.0]
[1673425357921,2.6122086,16.056,16.043,63.77]
[1673425360357,2.6122086,16.056,16.043,46.77]
[1673425360676,2.6122086,16.056,16.042,46.77]
[1673425362018,2.6122086,16.056,16.043,37.0]
[1673425362227,2.6122086,16.056,16.044,46.76]
[1673425368216,2.6122086,16.056,16.041,46.77]
[1673425368429,22.6122086,16.056,16.041,46.77]
[1673425368652,17.0,16.055,16.041,46.77]
[1673425369274,17.0,16.055,16.042,20.0]
[1673425369599,19.6122086,16.055,16.043,46.77]
[1673425371581,19.6122086,16.055,16.041,46.77]
[1673425371793,2.6122086,16.055,16.042,20.0]
[1673425372101,2.6122086,16.055,16.043,46.77]
[1673425373903,2.6122086,16.055,16.044,17.0]
[1673425374116,2.6122086,16.055,16.045,66.76]
[1673425374437,2.6122086,16.055,16.046,17.0]
[1673425374627,2.6122086,16.055,16.047,46.75]
[1673425375493,2.6122086,16.055,16.043,46.77]
[1673425377893,2.6122086,16.055,16.044,17.0]
[1673425378107,2.6122086,16.055,16.045,46.76]
[1673425378316,2.6122086,16.055,16.046,17.0]
[1673425378532,2.6122086,16.055,16.047,163.3819]
[1673425378859,2.6122086,16.055,16.047,183.3819]
[1673425379376,2.6122086,16.055,16.048,20.0]
[1673425379582,2.6122086,16.055,16.049,46.75]
[1673425381478,2.6122086,16.055,16.048,46.75]
[1673425384512,2.6122086,16.055,16.049,20.0]
[1673425386207,2.6122086,16.055,16.048,66.75]
[1673425386426,2.6122086,16.055,16.049,20.0]
[1673425387663,2.6122086,16.055,16.048,66.75]
[1673425387870,2.6122086,16.055,16.048,46.75]
[1673425393673,2.6122086,16.055,16.047,116.6319]
[1673425396385,2.6122086,16.055,16.043,46.77]
[1673425396613,26.22,16.05,16.038,166.6782]
[1673425396928,17.0,16.049,16.038,119.8982]
[1673425397755,20.0,16.048,16.038,119.8982]
[1673425398820,22.6122086,16.049,16.038,119.8982]
[1673425399446,17.0,16.048,16.038,119.8982]
[1673425399851,19.6122086,16.048,16.038,119.8982]
[1673425408795,19.6122086,16.048,16.03,46.8]
[1673425409001,181.85671521,16.047,16.03,46.8]
[1673425409219,26.47,16.04,16.029,110.642]
[1673425409433,37.0,16.039,16.029,110.642]
[1673425409963,1.16342239,16.038,16.029,110.642]
[1673425410504,37.0,16.039,16.029,110.642]
[1673425410695,17.0,16.039,16.029,110.642]
[1673425412049,1.05392511,16.038,16.029,110.642]
[1673425412258,17.0,16.039,16.029,110.642]
[1673425412470,1.11847497,16.038,16.029,110.642]
[1673425413854,46.76,16.045,16.029,110.642]
[1673425414045,20.0,16.044,16.03,83.8]
[1673425414682,20.0,16.045,16.03,83.8]
[1673425414886,17.0,16.044,16.03,83.8]
[1673425415097,20.0,16.043,16.03,83.8]
[1673425420700,20.0,16.043,16.03,63.8]
[1673425421100,20.0,16.042,16.03,63.8]
[1673425421317,20.0,16.041,16.03,63.8]
[1673425424785,17.0,16.04,16.03,46.8]
[1673425424996,17.0,16.04,16.029,110.642]
[1673425424997,43.38,16.04,16.029,110.642]
[1673425427427,20.0,16.039,16.029,110.642]
[1673425427614,17.0,16.038,16.029,110.642]
[1673425429104,17.0,16.038,16.025,46.82]
[1673425430453,26.38,16.04,16.026,17.0]
[1673425430665,26.38,16.04,16.027,46.81]
[1673425430879,20.0,16.039,16.027,46.81]
[1673425431100,20.0,16.039,16.024,46.82]
[1673425431313,1.06310888,16.038,16.025,17.0]
[1673425431504,20.0,16.039,16.026,46.82]
[1673425431710,17.0,16.038,16.024,46.82]
[1673425432036,17.0,16.038,16.025,17.0]
[1673425432262,1.08122994,16.037,16.026,46.82]
[1673425432453,17.0,16.038,16.026,46.82]
[1673425432872,1.03776575,16.037,16.026,46.82]
[1673425433188,1.03745679,16.037,16.026,46.82]
[1673425433391,17.0,16.038,16.026,46.82]
[1673425435724,26.38,16.04,16.027,20.0]
[1673425436042,26.38,16.04,16.026,46.82]
[1673425436885,20.0,16.039,16.026,46.82]
[1673425438773,46.38,16.04,16.026,46.82]
[1673425439086,17.0,16.039,16.026,46.82]
[1673425440035,17.0,16.039,16.026,46.70331261]
[1673425440433,26.38,16.04,16.026,46.70331261]
[1673425440643,26.38,16.04,16.027,30.47764827]
[1673425440850,26.38,16.04,16.028,46.81]
[1673425441188,26.38,16.04,16.029,17.0]
[1673425441379,26.38,16.04,16.03,46.8]
[1673425446871,26.38,16.04,16.024,46.82]
[1673425447084,20.0,16.039,16.025,17.0]
[1673425447413,20.0,16.039,16.026,46.82]
[1673425447603,20.0,16.039,16.027,17.0]
[1673425447813,20.0,16.039,16.028,46.81]
[1673425448235,20.0,16.041,16.029,17.0]
[1673425448445,20.0,16.041,16.029,177.7425]
[1673425448775,20.0,16.044,16.029,177.7425]
[1673425449396,20.0,16.044,16.029,160.7425]
[1673425449604,26.38,16.04,16.029,113.9325]
[1673425450646,20.0,16.039,16.029,113.9325]
[1673425451184,26.38,16.04,16.029,113.9325]
[1673425453084,26.284866,16.04,16.029,113.9325]
[1673425453815,26.284866,16.04,16.03,46.8]
[1673425454134,26.284866,16.04,16.029,113.9325]
[1673425460010,17.0,16.039,16.029,113.9325]
[1673425461804,26.284866,16.04,16.029,113.9325]
[1673425462014,26.284866,16.04,16.03,46.8]
[1673425463050,26.284866,16.04,16.029,113.9325]
[1673425463382,26.284866,16.04,16.03,63.8]
[1673425465258,26.284866,16.04,16.03,46.8]
[1673425465595,26.284866,16.04,16.029,113.9325]
[1673425466427,26.284866,16.04,16.03,46.8]
[1673425468422,26.284866,16.04,16.031,20.0]
[1673425468632,113.2554,16.042,16.031,20.0]
[1673425468838,20.0,16.041,16.031,20.0]
[1673425469242,20.0,16.041,16.032,46.8]
[1673425470103,137.7235086,16.047,16.033,13.47764827]
[1673425470104,2.6122086,16.047,16.033,13.47764827]
[1673425470299,2.6122086,16.047,16.034,63.79]
[1673425470502,2.6122086,16.047,16.035,20.0]
[1673425470716,92.9762,16.056,16.037,20.0]
[1673425470925,92.9762,16.056,16.038,159.3479]
[1673425471134,92.9762,16.056,16.039,17.0]
[1673425471344,92.9762,16.056,16.041,20.0]
[1673425471549,92.9762,16.056,16.042,46.77]
[1673425471973,17.0,16.055,16.043,20.0]
[1673425472186,17.0,16.055,16.044,46.76]
[1673425472940,17.0,16.055,16.045,20.0]
[1673425475879,156.3092,16.059,16.045,20.0]
[1673425476196,109.5892,16.059,16.046,17.0]
[1673425477337,17.0,16.058,16.047,114.3042]
[1673425477548,109.5892,16.059,16.048,20.0]
[1673425478082,156.3092,16.059,16.048,20.0]
[1673425478279,109.5892,16.059,16.048,20.0]
[1673425481029,109.5892,16.059,16.047,114.3042]
[1673425481239,109.5892,16.059,16.048,17.0]
[1673425481872,109.5892,16.059,16.048,37.0]
[1673425482807,109.5892,16.059,16.048,17.0]
[1673425485035,20.0,16.058,16.047,114.3042]
[1673425486501,17.0,16.057,16.047,114.3042]
[1673425488924,20.0,16.056,16.042,46.77]
[1673425489135,20.0,16.054,16.04,46.78]
[1673425489355,26.22,16.05,16.038,112.5679]
[1673425489749,20.0,16.048,16.038,112.5679]
[1673425490490,26.22,16.05,16.038,112.5679]
[1673425490699,17.0,16.049,16.038,112.5679]
[1673425494605,17.0,16.049,16.037,46.78]
[1673425494802,63.75,16.049,16.034,46.79]
[1673425495131,20.0,16.048,16.033,46.8]
[1673425495327,17.0,16.047,16.033,46.8]
[1673425496167,20.0,16.046,16.031,46.8]
[1673425496385,17.0,16.045,16.03,46.8]
[1673425496599,17.0,16.045,16.031,20.0]
[1673425496808,17.0,16.045,16.032,46.8]
[1673425497132,17.0,16.045,16.031,20.0]
[1673425497335,17.0,16.045,16.032,46.8]
[1673425499110,26.38,16.04,16.031,46.8]
[1673425499335,26.38,16.04,16.03,46.8]
[1673425500168,17.0,16.039,16.029,113.9325]
[1673425502389,26.38,16.04,16.029,113.9325]
[1673425502785,26.38,16.04,16.03,46.8]
[1673425503210,26.38,16.04,16.029,113.9325]
[1673425503754,26.38,16.04,16.03,20.0]
[1673425505638,26.38,16.04,16.029,113.9325]
[1673425507124,17.0,16.039,16.029,113.9325]
[1673425513519,17.0,16.039,16.03,20.0]
[1673425513942,26.38,16.04,16.03,20.0]
[1673425514141,26.38,16.04,16.03,66.8]
[1673425517830,26.54,16.04,16.03,66.8]
[1673425523418,26.54,16.04,16.031,17.0]
[1673425523628,114.3647,16.044,16.031,17.0]
[1673425523824,20.0,16.043,16.031,17.0]
[1673425524374,20.0,16.043,16.03,66.8]
[1673425531415,20.0,16.043,16.031,17.0]
[1673425531728,20.0,16.043,16.032,46.8]
[1673425531918,164.4851,16.047,16.033,17.0]
[1673425532132,394.3,16.048,16.034,46.79]
[1673425532344,394.3,16.048,16.035,37.0]
[1673425532555,394.3,16.048,16.036,46.79]
[1673425532762,394.3,16.048,16.037,20.0]
[1673425532972,26.65,16.05,16.038,46.78]
[1673425533185,26.65,16.05,16.038,158.8572]
[1673425533395,26.65,16.05,16.039,17.0]
[1673425533624,26.65,16.05,16.04,46.78]
[1673425533813,26.65,16.05,16.039,46.78]
[1673425536354,17.0,16.049,16.039,46.78]
[1673425536549,17.0,16.049,16.038,112.0772]
[1673425541197,17.0,16.049,16.036,46.79]
[1673425541512,20.0,16.048,16.032,46.8]
[1673425541705,17.0,16.047,16.032,46.8]
[1673425542343,20.0,16.046,16.031,46.8]
[1673425542558,37.0,16.045,16.031,46.8]
[1673425542879,20.0,16.044,16.03,46.8]
[1673425543069,37.0,16.043,16.03,46.8]
[1673425543282,37.0,16.043,16.031,20.0]
[1673425543492,37.0,16.043,16.03,46.8]
[1673425544265,26.37,16.04,16.029,113.9325]
[1673425544432,17.0,16.039,16.029,113.9325]
[1673425544643,26.37,16.04,16.029,113.9325]
[1673425544863,26.37,16.04,16.03,46.8]
[1673425545499,17.0,16.039,16.029,113.9325]
[1673425546124,17.0,16.039,16.024,46.82]
[1673425546343,17.0,16.039,16.023,46.82]
[1673425546560,20.0,16.038,16.023,46.82]
[1673425546868,17.0,16.037,16.023,46.82]
[1673425549062,26.56,16.03,16.021,46.83]
[1673425549585,20.0,16.029,16.021,46.83]
[1673425550647,26.56,16.03,16.021,46.83]
[1673425550838,20.0,16.034,16.021,46.83]
[1673425551052,20.0,16.032,16.021,46.83]
[1673425551695,37.0,16.031,16.021,46.83]
[1673425552754,20.0,16.031,16.021,46.83]
[1673425553064,131.6847,16.035,16.021,46.83]
[1673425553266,131.6847,16.035,16.022,37.0]
[1673425553267,17.0,16.034,16.022,37.0]
[1673425553478,17.0,16.034,16.023,46.82]
[1673425555593,17.0,16.034,16.022,46.83]
[1673425557807,17.0,16.035,16.023,20.0]
[1673425557990,17.0,16.036,16.024,46.82]
[1673425561460,17.0,16.036,16.022,46.83]
[1673425562108,17.0,16.036,16.023,20.0]
[1673425562322,17.0,16.036,16.024,46.82]
[1673425567264,20.0,16.039,16.024,46.82]
[1673425567454,20.0,16.039,16.025,17.0]
[1673425567674,17.0,16.038,16.026,46.82]
[1673425570929,17.0,16.038,16.024,46.82]
[1673425572812,17.0,16.038,16.025,20.0]
[1673425573035,17.0,16.038,16.026,46.82]
[1673425573246,252.2238,16.04,16.027,20.0]
[1673425573460,145.9838,16.04,16.027,20.0]
[1673425574324,145.9838,16.04,16.028,46.81]
[1673425574822,17.0,16.039,16.027,20.0]
[1673425576093,17.0,16.039,16.028,46.81]
[1673425580315,17.0,16.039,16.026,46.82]
[1673425580524,17.0,16.039,16.027,17.0]
[1673425580716,20.0,16.038,16.023,46.82]
[1673425580927,17.0,16.037,16.022,46.83]
[1673425582296,20.0,16.036,16.022,46.83]
[1673425582523,17.0,16.035,16.021,161.7368]
[1673425584729,17.0,16.035,16.022,20.0]
[1673425584941,17.0,16.035,16.023,46.82]
[1673425585149,17.0,16.035,16.022,66.83]
[1673425586406,207.1,16.046,16.022,66.83]
[1673425586407,91.35826706,16.043,16.023,17.0]
[1673425586618,146.1238,16.04,16.025,20.0]
[1673425586832,146.1238,16.04,16.026,63.82]
[1673425587025,146.1238,16.04,16.027,20.0]
[1673425587235,146.1238,16.04,16.028,46.81]
[1673425588082,146.1238,16.04,16.029,20.0]
[1673425588408,119.6638,16.04,16.03,46.8]
[1673425591660,119.6638,16.04,16.028,46.81]
[1673425591870,119.6638,16.04,16.029,17.0]
[1673425592068,119.6638,16.04,16.03,46.8]
[1673425593662,17.0,16.039,16.026,46.82]
[1673425593849,17.0,16.039,16.022,20.0]
[1673425594061,63.78,16.039,16.02,114.5165]
[1673425594291,63.78,16.039,16.021,20.0]
[1673425594487,20.0,16.038,16.022,46.83]
[1673425594694,17.0,16.037,16.022,46.83]
[1673425594905,17.0,16.037,16.017,46.84]
[1673425595134,17.0,16.037,16.018,20.0]
[1673425595351,20.0,16.036,16.019,46.84]
[1673425595543,17.0,16.035,16.02,20.0]
[1673425595752,17.0,16.035,16.021,46.83]
[1673425599024,17.0,16.035,16.022,37.0]
[1673425599337,20.0,16.039,16.023,46.82]
[1673425600811,17.0,16.038,16.023,46.82]
[1673425604168,20.0,16.037,16.022,46.83]
[1673425604390,26.28,16.03,16.02,20.0]
[1673425604572,26.28,16.03,16.018,20.0]
[1673425604995,17.0,16.029,16.019,46.84]
[1673425605322,20.0,16.029,16.02,20.0]
[1673425605644,26.28,16.03,16.02,20.0]
[1673425605832,26.28,16.03,16.014,20.0]
[1673425606045,26.28,16.03,16.015,63.85]
[1673425606257,26.28,16.03,16.016,20.0]
[1673425606468,26.28,16.03,16.017,63.84]
[1673425606684,26.28,16.03,16.018,20.0]
[1673425606882,26.28,16.03,16.019,63.84]
[1673425607097,26.28,16.03,16.02,20.0]
[1673425607319,26.28,16.03,16.021,46.83]
[1673425607724,26.37,16.03,16.021,46.83]
[1673425607938,26.37,16.03,16.02,20.0]
[1673425608282,26.37,16.03,16.021,46.83]
[1673425608459,26.37,16.03,16.018,46.84]
[1673425608665,26.37,16.03,16.019,20.0]
[1673425608882,26.37,16.03,16.02,46.83]
[1673425609211,26.37,16.03,16.021,20.0]
[1673425609614,26.37,16.03,16.017,20.0]
[1673425609829,26.37,16.03,16.018,83.84]
[1673425610040,26.37,16.03,16.019,20.0]
[1673425610264,26.37,16.03,16.02,46.83]
[1673425610463,26.37,16.03,16.019,66.84]
[1673425610665,17.0,16.029,16.019,20.0]
[1673425611191,17.0,16.029,16.016,66.85]
[1673425611401,17.0,16.029,16.016,20.0]
[1673425611622,17.0,16.029,16.017,46.84]
[1673425611849,17.0,16.029,16.018,20.0]
[1673425612022,26.37,16.03,16.018,20.0]
[1673425612237,26.37,16.03,16.019,63.84]
[1673425612664,26.37,16.03,16.02,20.0]
[1673425613720,26.37,16.03,16.021,20.0]
[1673425614048,26.37,16.03,16.022,46.83]
[1673425614247,20.0,16.036,16.022,46.83]
[1673425614458,20.0,16.038,16.023,17.0]
[1673425614661,20.0,16.038,16.024,46.82]
[1673425614871,66.78,16.038,16.024,46.82]
[1673425615197,66.78,16.038,16.022,46.83]
[1673425615602,17.0,16.037,16.022,46.83]
[1673425615825,20.0,16.036,16.021,46.83]
[1673425616028,17.0,16.035,16.021,46.83]
[1673425616244,35.62953868,16.035,16.021,46.83]
[1673425616452,35.62953868,16.035,16.022,17.0]
[1673425616664,35.62953868,16.035,16.023,46.82]
[1673425616872,17.0,16.035,16.023,46.82]
[1673425617085,18.62953868,16.034,16.023,46.82]
[1673425617507,18.62953868,16.034,16.024,20.0]
[1673425617716,17.0,16.035,16.024,20.0]
[1673425617941,46.78,16.038,16.024,20.0]
[1673425618134,66.78,16.039,16.025,17.0]
[1673425618347,17.0,16.038,16.025,17.0]
[1673425619510,17.0,16.038,16.024,20.0]
[1673425619717,18.62953868,16.037,16.023,46.82]
[1673425620035,17.0,16.036,16.022,46.83]
[1673425620241,17.0,16.036,16.023,17.0]
[1673425620878,18.62953868,16.035,16.023,17.0]
[1673425622769,18.62953868,16.035,16.022,46.83]
[1673425626764,17.0,16.034,16.021,157.9866]
[1673425626981,17.0,16.034,16.016,46.85]
[1673425627171,26.56,16.03,16.016,46.85]
[1673425627381,26.56,16.03,16.015,46.85]
[1673425627699,45.18953868,16.03,16.015,46.85]
[1673425627924,26.56,16.03,16.016,20.0]
[1673425628240,26.56,16.03,16.017,46.84]
[1673425630233,18.62953868,16.031,16.017,46.84]
[1673425630427,18.62953868,16.031,16.015,46.85]
[1673425630637,35.62953868,16.03,16.015,46.85]
[1673425632214,35.62953868,16.03,16.016,20.0]
[1673425632428,35.62953868,16.03,16.017,46.84]
[1673425634023,35.62953868,16.03,16.016,46.85]
[1673425634337,35.62953868,16.03,16.016,66.85]
[1673425636544,35.62953868,16.03,16.017,20.0]
[1673425636862,35.62953868,16.03,16.018,46.84]
[1673425637900,35.62953868,16.03,16.021,46.83]
[1673425638223,20.0,16.033,16.016,46.85]
[1673425638424,38.62953868,16.033,16.021,46.83]
[1673425640432,17.0,16.032,16.021,46.83]
[1673425640958,18.62953868,16.031,16.016,46.85]
[1673425641170,17.0,16.03,16.016,46.85]
[1673425641583,35.62953868,16.03,16.016,46.85]
[1673425641989,35.62953868,16.03,16.016,66.85]
[1673425642835,35.62953868,16.03,16.02,20.0]
[1673425643171,61.93953868,16.03,16.021,20.0]
[1673425643372,20.0,16.029,16.018,46.84]
[1673425643581,37.0,16.028,16.015,118.4385]
[1673425643777,55.62953868,16.028,16.015,118.4385]
[1673425643991,55.62953868,16.028,16.016,46.85]
[1673425644413,18.62953868,16.027,16.015,118.4385]
[1673425644624,17.0,16.026,16.015,118.4385]
[1673425645142,18.62953868,16.026,16.015,118.4385]
[1673425646737,20.0,16.028,16.015,118.4385]
[1673425646926,20.0,16.029,16.016,37.0]
[1673425647141,20.0,16.029,16.016,83.85]
[1673425651042,20.0,16.028,16.016,46.85]
[1673425651447,20.0,16.029,16.016,46.85]
[1673425651662,20.0,16.029,16.017,20.0]
[1673425651888,20.0,16.029,16.018,46.84]
[1673425657764,18.62953868,16.028,16.017,46.84]
[1673425658302,18.62953868,16.028,16.018,20.0]
[1673425658494,18.62953868,16.028,16.019,46.84]
[1673425658708,20.0,16.029,16.019,46.84]
[1673425659346,20.0,16.029,16.017,46.84]
[1673425660300,20.0,16.029,16.018,20.0]
[1673425660490,20.0,16.029,16.019,46.84]
[1673425660713,20.0,16.029,16.02,17.0]
[1673425660933,20.0,16.029,16.021,46.83]
[1673425661259,38.62953868,16.029,16.02,17.0]
[1673425661472,85.43953868,16.029,16.013,46.85]
[1673425661682,37.0,16.028,16.013,46.85]
[1673425662290,18.62953868,16.027,16.013,46.85]
[1673425663364,17.0,16.026,16.013,46.85]
[1673425663677,18.62953868,16.025,16.012,46.86]
[1673425663868,17.0,16.024,16.012,46.86]
[1673425664291,18.62953868,16.023,16.012,46.86]
[1673425664500,17.0,16.024,16.011,232.5993]
[1673425664728,18.62953868,16.023,16.011,232.5993]
[1673425665144,17.0,16.024,16.011,232.5993]
[1673425665658,17.0,16.024,16.011,116.0512]
[1673425665867,18.62953868,16.023,16.011,116.0512]
[1673425666077,17.0,16.022,16.011,116.0512]
[1673425666514,18.62953868,16.021,16.011,116.0512]
[1673425668705,18.62953868,16.021,16.007,46.87]
[1673425668706,20.0,16.019,16.007,46.87]
[1673425668921,17.0,16.018,16.007,46.87]